bitfinex-derivatives/quotes_SOLF0:USTF0_20240820
["timestamp","ask_amount","ask_price","bid_price","bid_amount"]
[1724186952279,3.52530196,143.63,143.61,3.4813]
[1724186953173,0.04430196,143.63,143.61,3.4813]
[1724186954784,3.52530196,143.63,143.61,3.4813]
[1724186955678,0.04430196,143.63,143.61,3.4813]
[1724186956189,3.52530196,143.63,143.61,3.4813]
[1724186959883,0.04430196,143.63,143.62,3.4812]
[1724186960290,3.4804,143.66,143.62,10.67]
[1724186960982,3.4804,143.66,143.64,3.4806]
[1724186961496,3.53318646,143.66,143.64,3.52666414]
[1724186962386,10.72278646,143.66,143.58,3.51280801]
[1724186962692,10.72278646,143.66,143.58,10.67]
[1724186962881,10.72278646,143.66,143.58,14.20949982]
[1724186963783,3.4808,143.64,143.61,3.4813]
[1724186964182,0.05278646,143.66,143.6,10.67]
[1724186964388,0.04882865,143.64,143.61,10.67]
[1724186965191,0.04882865,143.64,143.62,3.481]
[1724186965389,0.04882865,143.64,143.61,10.67]
[1724186965587,0.04882865,143.64,143.63,10.67]
[1724186966394,0.04882865,143.64,143.63,14.151]
[1724186968288,0.04882865,143.64,143.63,3.481]
[1724186976003,0.04882865,143.64,143.63,14.151]
[1724186977197,3.4801,143.67,143.65,3.4805]
[1724186977599,3.4799,143.68,143.63,10.67]
[1724186978197,0.04739651,143.67,143.65,3.4804]
[1724186979200,0.04739651,143.67,143.64,3.52986047]
[1724186982117,0.04739651,143.67,143.64,0.04916047]
[1724186982811,0.04739651,143.67,143.65,3.4804]
[1724186983109,0.04739651,143.67,143.64,0.04916047]
[1724186983508,0.04739651,143.67,143.65,3.4804]
[1724186985706,0.04739651,143.67,143.64,3.52976047]
[1724186989504,0.04739651,143.67,143.65,3.4803]
[1724186990412,0.04739651,143.67,143.66,3.4803]
[1724186990600,27.88790804,143.81,143.64,10.71916047]
[1724186990601,10.67,143.72,143.64,10.67]
[1724186991006,3.4793,143.71,143.67,3.4799]
[1724186991312,10.67,143.72,143.67,3.4799]
[1724186991511,0.0471278,143.71,143.68,3.52774891]
[1724186994519,3.5262278,143.71,143.68,0.04814891]
[1724186994818,0.0471278,143.71,143.68,3.52774891]
[1724186995117,0.0471278,143.71,143.68,0.04814891]
[1724186995518,0.0471278,143.71,143.68,3.52774891]
[1724186996913,0.0471278,143.71,143.69,3.4794]
[1724186997820,0.0471278,143.71,143.68,3.52774891]
[1724186998121,0.0471278,143.71,143.68,0.04814891]
[1724186998416,3.5262278,143.71,143.68,0.04814891]
[1724186999421,0.0471278,143.71,143.68,3.52784891]
[1724187001216,3.5262278,143.71,143.68,0.04814891]
[1724187001818,3.5262278,143.71,143.68,3.52794891]
[1724187002023,0.0471278,143.71,143.68,0.04814891]
[1724187002926,3.5262278,143.71,143.68,0.04814891]
[1724187003221,3.5262278,143.71,143.68,3.52784891]
[1724187008621,0.0471278,143.71,143.69,3.4795]
[1724187010628,0.0471278,143.71,143.68,3.52784891]
[1724187011930,3.5262278,143.71,143.68,0.04814891]
[1724187012124,0.0471278,143.71,143.68,0.04814891]
[1724187012325,14.1495,143.7,143.68,0.04814891]
[1724187012528,10.67,143.7,143.68,0.04814891]
[1724187013230,3.4795,143.69,143.68,0.04814891]
[1724187018726,3.4794,143.7,143.68,0.04814891]
[1724187026035,3.4795,143.69,143.68,0.04814891]
[1724187038844,14.1494,143.7,143.68,0.04814891]
[1724187041347,3.4794,143.7,143.68,0.04814891]
[1724187041654,0.0471278,143.71,143.68,0.04814891]
[1724187042161,0.0471278,143.71,143.68,3.52774891]
[1724187043843,3.5262278,143.71,143.68,3.52774891]
[1724187046553,3.4793,143.7,143.68,0.04814891]
[1724187046757,10.7171278,143.71,143.68,0.04814891]
[1724187047045,10.67,143.7,143.63,2.6206]
[1724187047250,10.67,143.68,143.63,2.6206]
[1724187047953,0.05194517,143.67,143.64,0.04803278]
[1724187048348,3.53204517,143.67,143.64,3.52863278]
[1724187050251,3.53204517,143.67,143.65,3.4805]
[1724187051148,3.53204517,143.67,143.64,3.52863278]
[1724187052654,0.05194517,143.67,143.65,3.4805]
[1724187053945,3.53204517,143.67,143.65,3.4805]
[1724187054150,3.53204517,143.67,143.64,3.52873278]
[1724187056549,3.4803,143.66,143.64,3.52873278]
[1724187060361,3.4803,143.66,143.64,0.04803278]
[1724187060557,0.05194517,143.67,143.64,0.04803278]
[1724187061062,3.45628208,143.67,143.64,0.04803278]
[1724187061458,3.4804,143.66,143.64,0.04803278]
[1724187063556,3.4805,143.65,143.64,0.04803278]
[1724187063756,10.67,143.65,143.59,10.67]
[1724187063956,10.67,143.66,143.6,10.67]
[1724187064162,3.481,143.63,143.6,14.1516]
[1724187064764,3.53002559,143.63,143.61,3.4814]
[1724187064965,0.04902559,143.63,143.6,10.67]
[1724187065164,0.04902559,143.63,143.61,3.4812]
[1724187067870,0.04902559,143.63,143.62,14.1512]
[1724187068063,10.67,143.69,143.63,10.67]
[1724187068264,10.67,143.69,143.58,6.22638969]
[1724187068465,3.4806,143.65,143.62,3.4811]
[1724187069070,3.52858174,143.65,143.62,3.53012825]
[1724187069668,0.04798174,143.65,143.62,0.04902825]
[1724187070163,3.4809,143.64,143.62,0.04902825]
[1724187072670,3.481,143.63,143.62,0.04902825]
[1724187076876,3.4809,143.64,143.62,0.04902825]
[1724187077475,3.4809,143.64,143.62,3.53022825]
[1724187085079,3.52858174,143.65,143.63,3.481]
[1724187085273,0.04798174,143.65,143.62,0.04902825]
[1724187086464,0.04798174,143.65,143.63,3.4808]
[1724187086978,0.04798174,143.65,143.62,0.04902825]
[1724187087176,0.04798174,143.65,143.64,3.4807]
[1724187091176,0.04798174,143.65,143.63,3.4808]
[1724187093982,0.04798174,143.65,143.62,3.53012825]
[1724187094782,3.52868174,143.65,143.62,3.53012825]
[1724187095589,3.52868174,143.65,143.63,3.481]
[1724187097385,3.52868174,143.65,143.62,0.04902825]
[1724187097386,3.4808,143.64,143.62,3.53012825]
[1724187098982,3.481,143.63,143.62,0.04902825]
[1724187100196,3.4809,143.64,143.62,0.04902825]
[1724187102685,10.67,143.64,143.57,1.3356]
[1724187102886,10.67,143.62,143.57,1.3356]
[1724187103090,10.67,143.6,143.54,2.6234]
[1724187103387,14.17609119,143.61,143.54,13.2934]
[1724187103792,0.04906897,143.59,143.54,13.2934]
[1724187103989,3.53116897,143.59,143.54,13.2934]
[1724187104196,0.04906897,143.59,143.54,2.6234]
[1724187104394,0.04906897,143.59,143.55,10.67]
[1724187104593,3.53116897,143.59,143.55,14.1528]
[1724187105191,0.04906897,143.59,143.55,10.67]
[1724187105907,3.53106897,143.59,143.55,14.1527]
[1724187106288,3.53106897,143.59,143.55,10.67]
[1724187106491,0.04906897,143.59,143.55,10.67]
[1724187106999,0.04906897,143.59,143.56,3.4825]
[1724187107595,0.04906897,143.59,143.57,14.1524]
[1724187109507,0.04906897,143.59,143.56,3.4826]
[1724187110000,0.04906897,143.59,143.57,3.4824]
[1724187110200,0.04906897,143.59,143.57,14.1524]
[1724187111301,0.04906897,143.59,143.57,3.4824]
[1724187111500,0.04906897,143.59,143.56,14.1525]
[1724187112308,3.53106897,143.59,143.56,14.1525]
[1724187112500,3.53106897,143.59,143.57,3.4824]
[1724187112501,0.04906897,143.59,143.57,3.4824]
[1724187113593,0.04906897,143.59,143.58,3.4822]
[1724187116501,0.04906897,143.59,143.57,14.1523]
[1724187117509,3.53116897,143.59,143.56,3.4827]
[1724187118106,0.04906897,143.59,143.54,2.6234]
[1724187118302,0.04906897,143.59,143.54,13.2934]
[1724187118907,3.4822,143.58,143.56,3.4826]
[1724187119313,0.04906897,143.59,143.56,3.4826]
[1724187120403,3.53116897,143.59,143.56,3.4826]
[1724187122501,3.53116897,143.59,143.57,3.4824]
[1724187126614,0.04906897,143.59,143.57,3.4824]
[1724187127115,0.04906897,143.59,143.58,3.4822]
[1724187130813,0.04906897,143.59,143.58,14.1522]
[1724187137627,10.67,143.66,143.58,10.67]
[1724187137822,4.33855251,143.67,143.59,10.67]
[1724187138023,3.4807,143.65,143.61,10.67]
[1724187138624,0.05013312,143.64,143.62,0.05291694]
[1724187139626,3.53103312,143.64,143.62,0.05291694]
[1724187143227,3.481,143.63,143.62,0.05291694]
[1724187143830,3.53103312,143.64,143.62,0.05291694]
[1724187144032,0.05013312,143.64,143.62,0.05291694]
[1724187144429,3.53093312,143.64,143.62,0.05291694]
[1724187146628,0.05013312,143.64,143.62,0.05291694]
[1724187151240,0.05013312,143.64,143.62,3.53401694]
[1724187151749,0.05013312,143.64,143.62,0.05291694]
[1724187153745,3.53093312,143.64,143.62,0.05291694]
[1724187155747,3.481,143.63,143.62,0.05291694]
[1724187156243,3.53093312,143.64,143.62,0.05291694]
[1724187157547,3.481,143.63,143.62,0.05291694]
[1724187160349,14.151,143.63,143.62,0.05291694]
[1724187161842,3.4817,143.61,143.55,10.67]
[1724187162346,10.67,143.63,143.57,3.4823]
[1724187162550,3.4818,143.6,143.57,3.4823]
[1724187162955,3.53186679,143.6,143.57,3.4823]
[1724187164849,0.05006679,143.6,143.58,3.4821]
[1724187165952,0.05006679,143.6,143.57,3.4824]
[1724187166742,3.53176679,143.6,143.57,3.4824]
[1724187174656,0.05006679,143.6,143.54,13.2934]
[1724187174958,10.72006679,143.6,143.54,13.2934]
[1724187175355,3.4823,143.58,143.55,3.4828]
[1724187175950,10.72006679,143.6,143.55,3.4828]
[1724187176361,3.4821,143.59,143.56,3.4826]
[1724187176556,0.05006679,143.6,143.56,3.4826]
[1724187176858,3.482,143.59,143.56,3.4826]
[1724187177062,3.482,143.59,143.56,14.1526]
[1724187177859,3.482,143.59,143.56,3.4826]
[1724187181656,0.05006679,143.6,143.54,13.2934]
[1724187181864,0.05006679,143.6,143.56,10.67]
[1724187182257,3.53176679,143.6,143.57,3.4823]
[1724187186369,0.05006679,143.6,143.58,14.1522]
[1724187192075,3.47813979,143.66,143.59,14.152]
[1724187192270,10.67,143.67,143.61,10.67]
[1724187192572,3.4807,143.65,143.61,14.1513]
[1724187192775,3.56431506,143.66,143.61,14.1513]
[1724187193169,3.4808,143.64,143.62,0.04749751]
[1724187194876,3.481,143.63,143.62,0.04749751]
[1724187198974,3.4808,143.64,143.62,0.04749751]
[1724187203371,3.49544765,143.65,143.62,0.04749751]
[1724187204379,3.4809,143.64,143.62,0.04749751]
[1724187205267,3.481,143.63,143.62,0.04749751]
[1724187212174,3.4809,143.64,143.62,0.04749751]
[1724187214476,3.481,143.63,143.62,0.04749751]
[1724187214978,0.04780805,143.65,143.62,0.04749751]
[1724187215482,3.4809,143.64,143.62,0.04749751]
[1724187221980,3.4809,143.64,143.62,3.52869751]
[1724187222180,3.52840805,143.65,143.62,3.52869751]
[1724187222584,0.04780805,143.65,143.63,3.4808]
[1724187228194,3.52830805,143.65,143.63,3.4808]
[1724187229694,0.04780805,143.65,143.64,3.4807]
[1724187229893,0.04780805,143.65,143.62,10.71749751]
[1724187230491,0.04780805,143.65,143.63,3.4809]
[1724187230492,3.52830805,143.65,143.63,3.4809]
[1724187237292,0.04780805,143.65,143.64,14.1507]
[1724187237493,67.26247477,143.7,143.64,10.67]
[1724187237689,67.26247477,143.7,143.66,10.67]
[1724187237890,3.4797,143.69,143.66,14.1502]
[1724187238090,67.26247477,143.7,143.66,10.67]
[1724187238606,3.52896964,143.69,143.67,3.52603837]
[1724187238907,3.52896964,143.69,143.67,0.04613837]
[1724187239791,3.4798,143.68,143.67,0.04613837]
[1724187247004,3.4798,143.68,143.6,1.2792]
[1724187247005,10.67,143.68,143.55,27.84]
[1724187247198,10.67,143.66,143.59,12.0101]
[1724187248008,0.04937671,143.64,143.61,0.0519986]
[1724187248197,3.4814,143.62,143.61,0.0519986]
[1724187250207,14.1514,143.62,143.61,0.0519986]
[1724187250397,14.1514,143.62,143.56,13.3213]
[1724187250398,3.482,143.59,143.56,13.3213]
[1724187251111,3.482,143.59,143.56,12.0064]
[1724187251313,3.52876,143.59,143.56,12.0064]
[1724187252205,3.52876,143.59,143.56,1.3364]
[1724187254515,10.71676,143.59,143.54,3.483]
[1724187254713,0.04676,143.59,143.54,3.483]
[1724187254903,0.04676,143.59,143.54,14.153]
[1724187255099,3.4823,143.58,143.54,14.153]
[1724187255702,3.4825,143.57,143.54,14.153]
[1724187256209,0.04676,143.59,143.53,2.7304]
[1724187256404,10.71676,143.59,143.53,2.7304]
[1724187256608,0.04676,143.59,143.53,2.7304]
[1724187256813,3.4826,143.57,143.54,3.483]
[1724187258118,0.04676,143.59,143.54,10.67]
[1724187258711,3.4823,143.58,143.55,3.4828]
[1724187259422,3.4823,143.58,143.54,14.1531]
[1724187260716,10.67,143.55,143.45,228.0]
[1724187260918,0.0446878,143.52,143.45,2.6087]
[1724187261213,0.0446878,143.52,143.48,3.4846]
[1724187261214,3.484,143.51,143.48,3.4846]
[1724187261621,14.154,143.51,143.48,3.4846]
[1724187261814,10.67,143.51,143.49,3.4843]
[1724187262019,0.0446878,143.52,143.49,3.4843]
[1724187262216,14.1984878,143.52,143.45,16.72625881]
[1724187262517,14.1984878,143.52,143.48,3.4845]
[1724187263523,3.484,143.51,143.48,3.4845]
[1724187263719,10.7146878,143.52,143.45,16.72625881]
[1724187264024,3.4839,143.51,143.45,16.72625881]
[1724187264317,3.4839,143.51,143.48,3.4845]
[1724187265826,3.4839,143.51,143.49,3.4844]
[1724187266209,3.4839,143.51,143.46,10.67]
[1724187266417,3.4839,143.51,143.48,3.4845]
[1724187266923,3.4839,143.51,143.46,10.67]
[1724187268822,3.4839,143.51,143.49,3.4843]
[1724187270121,3.5284878,143.52,143.49,3.4843]
[1724187274739,0.0446878,143.52,143.5,3.4841]
[1724187278038,0.0446878,143.52,143.51,3.4839]
[1724187278727,0.0446878,143.52,143.51,14.1539]
[1724187279533,3.4828,143.56,143.52,3.4835]
[1724187280537,0.05301842,143.55,143.53,3.53065679]
[1724187280742,0.05301842,143.55,143.53,10.71725679]
[1724187281140,3.4819,143.6,143.53,0.04725679]
[1724187281435,10.45274633,143.69,143.56,10.67]
[1724187281737,10.67,143.63,143.56,10.67]
[1724187282125,3.53139576,143.61,143.58,0.04911453]
[1724187288845,3.53139576,143.61,143.58,3.53131453]
[1724187289250,3.53139576,143.61,143.58,0.04911453]
[1724187291346,3.4818,143.6,143.58,0.04911453]
[1724187295152,0.04969576,143.61,143.58,0.04911453]
[1724187295358,0.04969576,143.61,143.59,3.4818]
[1724187299854,0.04969576,143.61,143.58,0.04911453]
[1724187300259,3.4819,143.6,143.58,0.04911453]
[1724187301859,0.04969576,143.61,143.58,0.04911453]
[1724187302264,53.35,143.59,143.4,27.86]
[1724187302460,29.8268,143.61,143.46,10.67]
[1724187302758,12.41565793,143.61,143.49,10.67]
[1724187303059,1.9638,143.61,143.52,10.67]
[1724187303360,0.05024776,143.58,143.55,0.05116068]
[1724187304161,3.60943996,143.58,143.55,0.05116068]
[1724187304459,14.27943996,143.58,143.55,0.05116068]
[1724187304960,3.4827,143.56,143.55,0.05116068]
[1724187305762,14.1527,143.56,143.55,0.05116068]
[1724187311060,3.4827,143.56,143.55,0.05116068]
[1724187320170,3.4826,143.57,143.55,0.05116068]
[1724187320568,0.05024776,143.58,143.55,10.72116068]
[1724187320776,3.53264776,143.58,143.55,10.72116068]
[1724187320967,66.50256321,143.65,143.57,10.67]
[1724187321167,10.67,143.64,143.57,10.67]
[1724187321473,3.4819,143.6,143.57,10.67]
[1724187321678,10.67,143.64,143.57,10.67]
[1724187321873,3.4817,143.61,143.57,14.1523]
[1724187322072,0.04941632,143.6,143.58,0.05141801]
[1724187322671,3.482,143.59,143.58,0.05141801]
[1724187323773,6.9587,143.7,143.59,10.67]
[1724187323976,6.9587,143.7,143.61,10.67]
[1724187323977,10.67,143.67,143.61,10.67]
[1724187324875,3.4809,143.64,143.63,0.05010096]
[1724187328184,3.52789618,143.65,143.63,10.72010096]
[1724187329389,3.4807,143.64,143.63,0.05010096]
[1724187329883,0.04729618,143.65,143.63,0.05010096]
[1724187330586,3.52779618,143.65,143.63,0.05010096]
[1724187334275,3.4807,143.64,143.63,0.05010096]
[1724187335184,0.04729618,143.65,143.63,14.20110096]
[1724187335388,0.04729618,143.65,143.64,10.67]
[1724187336090,0.04729618,143.65,143.63,3.53110096]
[1724187336292,3.52799618,143.65,143.63,0.05010096]
[1724187343286,3.4807,143.64,143.63,0.05010096]
[1724187348996,3.4807,143.64,143.63,10.72010096]
[1724187350804,3.4807,143.64,143.63,0.05010096]
[1724187361302,3.4807,143.64,143.52,2.6493]
[1724187361500,10.67,143.62,143.52,2.6493]
[1724187361705,10.67,143.61,143.55,10.67]
[1724187361894,10.67,143.61,143.53,10.67]
[1724187361895,3.52930451,143.6,143.53,10.67]
[1724187362203,0.04620194,143.58,143.52,3.9311]
[1724187362409,3.4826,143.57,143.55,0.04837361]
[1724187368419,3.4827,143.56,143.55,0.04837361]
[1724187369411,3.4826,143.57,143.55,0.04837361]
[1724187370308,3.4826,143.57,143.55,10.71837361]
[1724187370513,0.04620194,143.58,143.56,10.67]
[1724187370917,3.52860194,143.58,143.56,10.67]
[1724187375315,0.04620194,143.58,143.56,14.1527]
[1724187378607,0.04620194,143.58,143.57,3.4824]
[1724187378916,3.51650302,143.63,143.56,10.67]
[1724187379119,10.67,143.63,143.56,10.67]
[1724187379314,10.67,143.63,143.56,14.1525]
[1724187379615,14.0679805,143.63,143.56,14.1525]
[1724187379814,3.4818,143.6,143.58,0.04876373]
[1724187385112,3.5277108,143.61,143.58,0.04876373]
[1724187385915,0.0461108,143.61,143.58,10.71876373]
[1724187386717,0.0461108,143.61,143.6,10.67]
[1724187387315,0.0461108,143.61,143.6,14.1517]
[1724187388810,0.0461108,143.61,143.59,3.4818]
[1724187389009,0.0461108,143.61,143.59,14.1518]
[1724187394242,3.4817,143.6,143.58,3.53076373]
[1724187394420,10.7161108,143.61,143.58,0.04876373]
[1724187395631,3.482,143.59,143.58,0.04876373]
[1724187418262,0.0461108,143.61,143.58,0.04876373]
[1724187419162,3.4819,143.59,143.58,0.04876373]
[1724187424954,3.4818,143.6,143.58,0.04876373]
[1724187425564,3.482,143.59,143.58,0.04876373]
[1724187425750,0.0461108,143.61,143.58,0.04876373]
[1724187426160,3.4819,143.6,143.58,0.04876373]
[1724187428162,0.0461108,143.61,143.59,3.482]
[1724187428358,0.0461108,143.61,143.59,14.152]
[1724187428564,0.0461108,143.61,143.59,10.67]
[1724187428762,0.0461108,143.61,143.59,11.9894]
[1724187429266,0.0461108,143.61,143.6,3.4817]
[1724187429861,0.0461108,143.61,143.6,14.1517]
[1724187432664,3.45034127,143.67,143.62,3.4812]
[1724187433569,3.4808,143.64,143.61,14.1514]
[1724187433775,3.52884289,143.64,143.61,14.20034784]
[1724187435765,3.52884289,143.64,143.61,3.53034784]
[1724187441861,3.52884289,143.64,143.61,0.04894784]
[1724187441862,0.04804289,143.64,143.61,0.04894784]
[1724187442071,10.71804289,143.64,143.61,0.04894784]
[1724187442374,10.67,143.62,143.61,0.04894784]
[1724187442571,10.67,143.62,143.57,4.7541]
[1724187443265,10.67,143.61,143.54,11.9939]
[1724187443464,0.04984927,143.59,143.56,0.04442897]
[1724187443776,3.53194927,143.59,143.56,0.04442897]
[1724187446578,3.53194927,143.59,143.56,3.52702897]
[1724187446770,3.53194927,143.59,143.56,0.04442897]
[1724187447165,3.4823,143.58,143.56,0.04442897]
[1724187448471,3.4824,143.57,143.56,0.04442897]
[1724187453369,3.4833,143.54,143.51,1.306]
[1724187453576,3.4833,143.54,143.51,4.7897]
[1724187453875,10.67,143.57,143.51,1.306]
[1724187453876,3.4831,143.55,143.51,1.306]
[1724187454477,0.04495486,143.54,143.52,3.53062254]
[1724187456486,20.89,143.66,143.53,10.67]
[1724187456676,20.89,143.66,143.56,10.67]
[1724187456677,10.67,143.63,143.56,10.67]
[1724187457183,3.4823,143.58,143.56,10.67]
[1724187457492,3.5356391,143.58,143.56,10.71391645]
[1724187457793,0.0533391,143.58,143.56,10.71391645]
[1724187458090,0.0533391,143.58,143.56,0.04391645]
[1724187458288,0.0533391,143.58,143.56,10.71391645]
[1724187461091,0.0533391,143.58,143.56,14.19661645]
[1724187461285,0.0533391,143.58,143.56,10.71391645]
[1724187461889,0.0533391,143.58,143.56,0.04391645]
[1724187466903,3.5355391,143.58,143.56,0.04391645]
[1724187470695,0.0533391,143.58,143.56,0.04391645]
[1724187472296,3.4824,143.57,143.56,0.04391645]
[1724187472999,3.5356391,143.58,143.56,0.04391645]
[1724187473203,0.0533391,143.58,143.56,0.04391645]
[1724187475905,3.5356391,143.58,143.56,0.04391645]
[1724187476300,3.5356391,143.58,143.51,4.76156748]
[1724187476301,0.0533391,143.58,143.53,10.67]
[1724187476508,3.4822,143.58,143.53,14.1532]
[1724187476811,15.42154615,143.6,143.45,1.2647]
[1724187477013,15.42154615,143.6,143.52,10.67]
[1724187477312,3.53606529,143.57,143.55,0.05239714]
[1724187477512,0.05336529,143.57,143.55,0.05239714]
[1724187478310,3.4827,143.56,143.55,0.05239714]
[1724187480313,3.4827,143.56,143.55,0.05239714]
[1724187480514,3.483,143.55,143.46,1.19604253]
[1724187480710,3.483,143.55,143.51,10.67]
[1724187481109,3.483,143.55,143.51,14.1538]
[1724187481310,3.483,143.55,143.51,3.4838]
[1724187481615,0.0486627,143.54,143.52,10.718301]
[1724187482018,0.0486627,143.54,143.52,14.201801]
[1724187482218,0.0486627,143.54,143.52,10.718301]
[1724187482511,0.0486627,143.54,143.52,0.048301]
[1724187483222,3.4834,143.53,143.52,0.048301]
[1724187483709,3.5319627,143.54,143.52,0.048301]
[1724187484017,0.0486627,143.54,143.52,10.718301]
[1724187487112,0.0486627,143.54,143.52,0.048301]
[1724187488618,10.67,143.53,143.45,11.9347]
[1724187488918,42.68,143.59,143.45,11.9347]
[1724187489118,3.4841,143.51,143.47,3.4848]
[1724187489517,0.04701022,143.5,143.47,3.4848]
[1724187490723,0.04701022,143.5,143.48,14.1546]
[1724187493012,0.04701022,143.5,143.49,3.4844]
[1724187493218,10.67,143.57,143.49,10.67]
[1724187493932,10.67,143.57,143.5,3.484]
[1724187494228,0.05333303,143.55,143.52,0.04701022]
[1724187494524,3.4834,143.53,143.52,0.04701022]
[1724187497932,3.4833,143.54,143.52,0.04701022]
[1724187499133,3.4834,143.53,143.52,0.04701022]
[1724187499432,0.05333303,143.55,143.52,0.04701022]
[1724187499836,3.4833,143.54,143.52,0.04701022]
[1724187503235,3.4834,143.53,143.52,0.04701022]
[1724187542159,3.4834,143.54,143.52,0.04701022]
[1724187542462,0.05333303,143.55,143.52,0.04701022]
[1724187543261,3.4834,143.53,143.52,0.04701022]
[1724187544163,3.4834,143.54,143.52,0.04701022]
[1724187546062,3.4834,143.53,143.52,0.04701022]
[1724187566784,3.4833,143.54,143.52,0.04701022]
[1724187569382,3.53643303,143.55,143.52,0.04701022]
[1724187569681,0.05333303,143.55,143.52,0.04701022]
[1724187570491,3.4833,143.54,143.52,0.04701022]
[1724187570788,0.05333303,143.55,143.52,0.04701022]
[1724187571801,3.4833,143.54,143.52,0.04701022]
[1724187572604,3.4834,143.53,143.52,0.04701022]
[1724187576312,3.4833,143.54,143.52,0.04701022]
[1724187579213,3.4834,143.53,143.52,0.04701022]
[1724187580012,3.4833,143.54,143.52,0.04701022]
[1724187582099,0.05333303,143.55,143.52,0.04701022]
[1724187582705,3.4834,143.54,143.52,0.04701022]
[1724187584415,3.4834,143.53,143.52,0.04701022]
[1724187584909,0.05333303,143.55,143.46,10.67]
[1724187585109,10.67,143.53,143.46,10.67]
[1724187585417,3.4842,143.5,143.46,14.155]
[1724187585804,0.05178382,143.49,143.46,14.155]
[1724187589118,0.05178382,143.49,143.46,3.485]
[1724187589410,0.05178382,143.49,143.47,10.67]
[1724187591013,3.53628382,143.49,143.46,3.485]
[1724187591213,3.53628382,143.49,143.46,14.155]
[1724187591714,0.05178382,143.49,143.46,14.155]
[1724187592309,0.05178382,143.49,143.48,10.67]
[1724187593018,0.05178382,143.49,143.48,14.1547]
[1724187597510,27.8555,143.57,143.48,14.1547]
[1724187597511,10.67,143.58,143.48,10.67]
[1724187597710,10.67,143.58,143.51,10.67]
[1724187597912,3.4837,143.52,143.51,10.67]
[1724187598415,0.04529583,143.53,143.51,10.67]
[1724187598620,0.04587285,143.53,143.51,10.71806693]
[1724187600613,0.04587285,143.53,143.51,0.04806693]
[1724187601921,3.4837,143.52,143.51,0.04806693]
[1724187602419,3.52947285,143.53,143.51,0.04806693]
[1724187602915,0.04587285,143.53,143.51,0.04806693]
[1724187606321,3.52937285,143.53,143.51,0.04806693]
[1724187606520,0.04587285,143.53,143.51,0.04806693]
[1724187606918,3.4837,143.52,143.51,0.04806693]
[1724187607518,3.52937285,143.53,143.51,0.04806693]
[1724187610414,0.04587285,143.53,143.51,0.04806693]
[1724187611314,3.52947285,143.53,143.51,0.04806693]
[1724187611715,3.4837,143.52,143.51,0.04806693]
[1724187611916,10.71587285,143.53,143.45,1.2508]
[1724187612113,10.67,143.52,143.44,2.5245]
[1724187612315,10.67,143.5,143.44,16.6801]
[1724187612511,10.67,143.51,143.44,11.9276]
[1724187612722,10.67,143.51,143.45,10.67]
[1724187612922,0.0476785,143.49,143.45,10.67]
[1724187613319,0.0476785,143.49,143.45,14.1553]
[1724187616130,0.0476785,143.49,143.46,14.1551]
[1724187616423,0.0476785,143.49,143.46,10.67]
[1724187618127,0.0476785,143.49,143.46,14.1551]
[1724187620033,0.0476785,143.49,143.48,10.67]
[1724187620828,0.0476785,143.49,143.48,14.1547]
[1724187621031,0.0476785,143.49,143.48,10.67]
[1724187623226,0.0476785,143.49,143.47,14.1548]
[1724187628628,0.0476785,143.49,143.48,3.4846]
[1724187629336,0.0476785,143.49,143.47,14.1548]
[1724187631426,0.0476785,143.49,143.44,1.2576]
[1724187631427,0.0476785,143.49,143.45,3.4854]
[1724187631633,0.0476785,143.49,143.46,10.67]
[1724187632442,0.0476785,143.49,143.48,10.67]
[1724187633337,0.0476785,143.49,143.47,14.1548]
[1724187638335,0.0476785,143.49,143.48,3.4846]
[1724187639437,0.0476785,143.49,143.48,14.1546]
[1724187640540,0.0476785,143.49,143.48,10.67]
[1724187641228,0.0476785,143.49,143.48,14.1546]
[1724187670857,2.6681,143.57,143.51,3.4838]
[1724187671055,2.6681,143.57,143.51,14.1538]
[1724187671961,0.05306788,143.55,143.53,0.05129786]
[1724187672361,3.4833,143.54,143.53,0.05129786]
[1724187672663,10.72306788,143.55,143.49,10.67]
[1724187673156,10.72306788,143.55,143.48,10.67]